[Event "*** SCC Grand Prix: Titled Tuesday Blitz"]
[Site "Chess.com"]
[Date "2020.07.14"]
[Round "2"]
[White "PattyCastillo"]
[Black "ARTHURMOTIVATOR"]
[Result "0-1"]
[WhiteElo "1935"]
[BlackElo "2344"]
[TimeControl "180+1"]
[EndTime "10:19:06 PDT"]
[Termination "ARTHURMOTIVATOR won on time"]

1. d4 {[%clk 0:03:00.9]} 1... Nf6 {[%clk 0:02:57.3]} 2. Nf3 {[%clk 0:02:58.5]}
2... c5 {[%clk 0:02:56.9]} 3. e3 {[%clk 0:02:57.6]} 3... g6 {[%clk 0:02:55.3]}
4. Nc3 {[%clk 0:02:54.1]} 4... cxd4 {[%clk 0:02:48.8]} 5. exd4 {[%clk 0:02:54]}
5... d5 {[%clk 0:02:30.1]} 6. Bf4 {[%clk 0:02:43.2]} 6... Bg7 {[%clk 0:02:25.1]}
7. Be2 {[%clk 0:02:39.7]} 7... O-O {[%clk 0:02:23.7]} 8. h3 {[%clk 0:02:39.4]}
8... a6 {[%clk 0:02:20.8]} 9. O-O {[%clk 0:02:39.1]} 9... Nc6 {[%clk 0:02:19.5]}
10. Ne5 {[%clk 0:02:27.7]} 10... Nd7 {[%clk 0:01:34.5]} 11. Nxc6 {[%clk
0:02:14]} 11... bxc6 {[%clk 0:01:33]} 12. Na4 {[%clk 0:02:12.6]} 12... e5 {[%clk
0:01:28.6]} 13. dxe5 {[%clk 0:02:08.9]} 13... Nxe5 {[%clk 0:01:25.5]} 14. c3
{[%clk 0:01:31.3]} 14... Re8 {[%clk 0:00:57.5]} 15. Re1 {[%clk 0:01:29.8]} 15...
Bf5 {[%clk 0:00:46]} 16. Nc5 {[%clk 0:01:16.4]} 16... Qb6 {[%clk 0:00:37.7]} 17.
b4 {[%clk 0:01:03.9]} 17... a5 {[%clk 0:00:20.3]} 18. a3 {[%clk 0:00:26.4]}
18... Nd7 {[%clk 0:00:17.3]} 19. Nxd7 {[%clk 0:00:19]} 19... Bxd7 {[%clk
0:00:16.1]} 20. Rc1 {[%clk 0:00:17.4]} 20... Re6 {[%clk 0:00:12.4]} 21. Be3
{[%clk 0:00:15]} 21... Qb7 {[%clk 0:00:11.1]} 22. Bc5 {[%clk 0:00:15.1]} 22...
Rae8 {[%clk 0:00:10.1]} 23. Qd2 {[%clk 0:00:13.7]} 23... axb4 {[%clk 0:00:09.8]}
24. cxb4 {[%clk 0:00:13.1]} 24... Re4 {[%clk 0:00:08.4]} 25. Bf3 {[%clk
0:00:12.7]} 25... R4e6 {[%clk 0:00:07.3]} 26. Rxe6 {[%clk 0:00:12.4]} 26... Bxe6
{[%clk 0:00:07.5]} 27. Re1 {[%clk 0:00:12.4]} 27... Bf8 {[%clk 0:00:07.1]} 28.
Bxf8 {[%clk 0:00:11.3]} 28... Rxf8 {[%clk 0:00:07.3]} 29. Qd4 {[%clk 0:00:11.3]}
29... Ra8 {[%clk 0:00:07.1]} 30. Qc3 {[%clk 0:00:10.7]} 30... Qa6 {[%clk
0:00:06.5]} 31. Rc1 {[%clk 0:00:09.8]} 31... Qxa3 {[%clk 0:00:05.4]} 32. Qxa3
{[%clk 0:00:09.5]} 32... Rxa3 {[%clk 0:00:05]} 33. Rxc6 {[%clk 0:00:09.8]} 33...
Rb3 {[%clk 0:00:04.5]} 34. Rb6 {[%clk 0:00:08.8]} 34... d4 {[%clk 0:00:04.3]}
35. Be4 {[%clk 0:00:08.1]} 35... d3 {[%clk 0:00:04.3]} 36. Rd6 {[%clk
0:00:07.9]} 36... Rxb4 {[%clk 0:00:03.4]} 37. Bxd3 {[%clk 0:00:08.3]} 37... Kf8
{[%clk 0:00:03.4]} 38. Be2 {[%clk 0:00:06.9]} 38... Ke7 {[%clk 0:00:04.2]} 39.
Rd2 {[%clk 0:00:06.5]} 39... Kf6 {[%clk 0:00:05.1]} 40. Bf3 {[%clk 0:00:06.7]}
40... Ke5 {[%clk 0:00:05.6]} 41. g3 {[%clk 0:00:06.4]} 41... Kf6 {[%clk
0:00:06]} 42. Bg2 {[%clk 0:00:06.4]} 42... h5 {[%clk 0:00:06.4]} 43. h4 {[%clk
0:00:06.7]} 43... Bf5 {[%clk 0:00:05.8]} 44. Kh2 {[%clk 0:00:06.1]} 44... Kg7
{[%clk 0:00:06.7]} 45. f3 {[%clk 0:00:06.1]} 45... Ra4 {[%clk 0:00:06.7]} 46.
Bh3 {[%clk 0:00:06.2]} 46... Bxh3 {[%clk 0:00:06.2]} 47. Kxh3 {[%clk 0:00:07.1]}
47... Ra3 {[%clk 0:00:06.4]} 48. Kg2 {[%clk 0:00:07.5]} 48... Rb3 {[%clk
0:00:06.6]} 49. Re2 {[%clk 0:00:07.1]} 49... Rc3 {[%clk 0:00:07]} 50. Rd2 {[%clk
0:00:07.3]} 50... Ra3 {[%clk 0:00:06.6]} 51. Re2 {[%clk 0:00:07.6]} 51... Kf6
{[%clk 0:00:06.9]} 52. Rd2 {[%clk 0:00:07.8]} 52... Ra5 {[%clk 0:00:07]} 53. Re2
{[%clk 0:00:08]} 53... Re5 {[%clk 0:00:07.1]} 54. Kf2 {[%clk 0:00:07.7]} 54...
Rxe2+ {[%clk 0:00:06.6]} 55. Kxe2 {[%clk 0:00:08.6]} 55... Ke5 {[%clk
0:00:06.8]} 56. Ke3 {[%clk 0:00:09]} 56... f6 {[%clk 0:00:07.1]} 57. f4+ {[%clk
0:00:04.8]} 57... Kd5 {[%clk 0:00:06.8]} 58. Kf3 {[%clk 0:00:03.9]} 58... Kd4
{[%clk 0:00:05.9]} 59. g4 {[%clk 0:00:03.9]} 59... hxg4+ {[%clk 0:00:04.9]} 60.
Kxg4 {[%clk 0:00:04.8]} 60... Ke4 {[%clk 0:00:05.1]} 0-1

[Event "*** SCC Grand Prix: Titled Tuesday Blitz"]
[Site "Chess.com"]
[Date "2020.07.14"]
[Round "2"]
[White "maxsergej"]
[Black "Maxim_e2e4"]
[Result "0-1"]
[WhiteElo "2089"]
[BlackElo "2385"]
[TimeControl "180+1"]
[EndTime "10:19:07 PDT"]
[Termination "Maxim_e2e4 won on time"]

1. e4 {[%clk 0:02:59.2]} 1... c5 {[%clk 0:02:59.1]} 2. Nf3 {[%clk 0:02:58.6]}
2... d6 {[%clk 0:02:58.6]} 3. d4 {[%clk 0:02:58.6]} 3... cxd4 {[%clk 0:02:59.5]}
4. Nxd4 {[%clk 0:02:58.8]} 4... Nf6 {[%clk 0:02:59.7]} 5. Nc3 {[%clk 0:02:59.1]}
5... a6 {[%clk 0:03:00.2]} 6. Be3 {[%clk 0:02:58.7]} 6... e5 {[%clk 0:02:58.4]}
7. Nf3 {[%clk 0:02:58.4]} 7... Qc7 {[%clk 0:02:56.9]} 8. h3 {[%clk 0:02:55.5]}
8... h6 {[%clk 0:02:55.2]} 9. Nd2 {[%clk 0:02:55.3]} 9... Be6 {[%clk 0:02:53.2]}
10. Be2 {[%clk 0:02:52.5]} 10... b5 {[%clk 0:02:46.9]} 11. a3 {[%clk 0:02:52]}
11... Be7 {[%clk 0:02:41.9]} 12. O-O {[%clk 0:02:51.8]} 12... O-O {[%clk
0:02:39.6]} 13. Bf3 {[%clk 0:02:52.1]} 13... Nbd7 {[%clk 0:02:36.2]} 14. Nd5
{[%clk 0:02:47.8]} 14... Nxd5 {[%clk 0:02:28.2]} 15. exd5 {[%clk 0:02:47.7]}
15... Bf5 {[%clk 0:02:28.9]} 16. c3 {[%clk 0:02:48.1]} 16... Bh7 {[%clk
0:02:17.7]} 17. Re1 {[%clk 0:02:32]} 17... f5 {[%clk 0:02:14.6]} 18. Nf1 {[%clk
0:02:27.2]} 18... e4 {[%clk 0:02:09.8]} 19. Bh5 {[%clk 0:02:21.8]} 19... f4
{[%clk 0:01:55.8]} 20. Bd4 {[%clk 0:02:20.9]} 20... Bf6 {[%clk 0:01:54.7]} 21.
Bg4 {[%clk 0:02:13]} 21... Ne5 {[%clk 0:01:51.8]} 22. Be6+ {[%clk 0:02:12.5]}
22... Kh8 {[%clk 0:01:51.3]} 23. Nh2 {[%clk 0:02:03.8]} 23... Nd3 {[%clk
0:01:47.6]} 24. Bxf6 {[%clk 0:01:29]} 24... Rxf6 {[%clk 0:01:46.8]} 25. Ng4
{[%clk 0:01:24.3]} 25... Rff8 {[%clk 0:01:41.5]} 26. Rf1 {[%clk 0:01:19.8]}
26... Nxb2 {[%clk 0:01:32.2]} 27. Qd4 {[%clk 0:01:17.1]} 27... Qc5 {[%clk
0:01:15.6]} 28. Qxc5 {[%clk 0:01:07.3]} 28... dxc5 {[%clk 0:01:16.5]} 29. Ne5
{[%clk 0:01:04.8]} 29... Bf5 {[%clk 0:01:10.7]} 30. Nd7 {[%clk 0:00:59.2]} 30...
Bxe6 {[%clk 0:01:02.6]} 31. dxe6 {[%clk 0:00:58.9]} 31... Rfc8 {[%clk
0:01:01.1]} 32. Rfe1 {[%clk 0:00:54.3]} 32... Rc6 {[%clk 0:00:32.6]} 33. Rxe4
{[%clk 0:00:52.2]} 33... Re8 {[%clk 0:00:32.5]} 34. Rae1 {[%clk 0:00:43.2]}
34... Nd3 {[%clk 0:00:25.8]} 35. Ne5 {[%clk 0:00:41.4]} 35... Nxe5 {[%clk
0:00:19.1]} 36. Rxe5 {[%clk 0:00:41.2]} 36... Kg8 {[%clk 0:00:17.9]} 37. g3
{[%clk 0:00:38.2]} 37... fxg3 {[%clk 0:00:17.5]} 38. fxg3 {[%clk 0:00:38.6]}
38... Re7 {[%clk 0:00:17.5]} 39. Kg2 {[%clk 0:00:38.5]} 39... a5 {[%clk
0:00:16.8]} 40. Kf3 {[%clk 0:00:37.8]} 40... b4 {[%clk 0:00:16.7]} 41. Kf4
{[%clk 0:00:35.2]} 41... b3 {[%clk 0:00:13.7]} 42. c4 {[%clk 0:00:33.8]} 42...
a4 {[%clk 0:00:13.3]} 43. R1e2 {[%clk 0:00:34.1]} 43... Rb6 {[%clk 0:00:12.4]}
44. Rb2 {[%clk 0:00:32.6]} 44... Rbxe6 {[%clk 0:00:11.1]} 45. Rxc5 {[%clk
0:00:31.3]} 45... Re4+ {[%clk 0:00:10.8]} 46. Kf5 {[%clk 0:00:29.7]} 46... Re3
{[%clk 0:00:10.6]} 47. Ra5 {[%clk 0:00:26.4]} 47... Rf3+ {[%clk 0:00:08.6]} 48.
Kg4 {[%clk 0:00:25.5]} 48... Rc3 {[%clk 0:00:08.5]} 49. Rxa4 {[%clk 0:00:23]}
49... Re4+ {[%clk 0:00:08.1]} 50. Kf5 {[%clk 0:00:22.6]} 50... Rd4 {[%clk
0:00:08.4]} 51. Rb4 {[%clk 0:00:19.8]} 51... Rxg3 {[%clk 0:00:06.6]} 52. R2xb3
{[%clk 0:00:19]} 52... Rg5+ {[%clk 0:00:06.6]} 53. Ke6 {[%clk 0:00:18.3]} 53...
Rf4 {[%clk 0:00:06.8]} 54. Kd7 {[%clk 0:00:13.2]} 54... Re5 {[%clk 0:00:04.2]}
55. Rb8+ {[%clk 0:00:09.3]} 55... Kh7 {[%clk 0:00:03.8]} 56. R3b6 {[%clk
0:00:09.1]} 56... Rxc4 {[%clk 0:00:02.1]} 57. Rf8 {[%clk 0:00:04.1]} 57... Rd4+
{[%clk 0:00:02.1]} 58. Kc7 {[%clk 0:00:03.1]} 58... Rc5+ {[%clk 0:00:01.8]} 59.
Rc6 {[%clk 0:00:01.5]} 59... Rdc4 {[%clk 0:00:01.8]} 0-1

[Event "*** SCC Grand Prix: Titled Tuesday Blitz"]
[Site "Chess.com"]
[Date "2020.07.14"]
[Round "2"]
[White "AnishOnYoutube"]
[Black "Natalya_Buksa"]
[Result "1-0"]
[WhiteElo "2848"]
[BlackElo "2524"]
[TimeControl "180+1"]
[EndTime "10:19:09 PDT"]
[Termination "AnishOnYoutube won by checkmate"]

1. d4 {[%clk 0:03:00.9]} 1... d5 {[%clk 0:02:59.6]} 2. c4 {[%clk 0:03:00.9]}
2... e6 {[%clk 0:03:00.1]} 3. Nf3 {[%clk 0:03:01.2]} 3... Nf6 {[%clk 0:02:59.4]}
4. Nc3 {[%clk 0:03:01.2]} 4... Be7 {[%clk 0:02:59.7]} 5. Bf4 {[%clk 0:03:00.1]}
5... O-O {[%clk 0:02:56.6]} 6. e3 {[%clk 0:03:00.3]} 6... b6 {[%clk 0:02:56.7]}
7. Bd3 {[%clk 0:02:56.7]} 7... Bb7 {[%clk 0:02:53.9]} 8. O-O {[%clk 0:02:56]}
8... dxc4 {[%clk 0:02:31.1]} 9. Bxc4 {[%clk 0:02:54.9]} 9... c5 {[%clk
0:02:31.3]} 10. Qe2 {[%clk 0:02:44.2]} 10... Nbd7 {[%clk 0:02:25.9]} 11. Rad1
{[%clk 0:02:31.4]} 11... Qc8 {[%clk 0:02:00.8]} 12. Bg3 {[%clk 0:02:02.2]} 12...
Ne4 {[%clk 0:01:54.3]} 13. Nxe4 {[%clk 0:01:57.9]} 13... Bxe4 {[%clk 0:01:53.8]}
14. Ba6 {[%clk 0:01:44.7]} 14... Qc6 {[%clk 0:01:38.8]} 15. dxc5 {[%clk
0:01:44]} 15... Bxf3 {[%clk 0:01:05.7]} 16. gxf3 {[%clk 0:01:38.2]} 16... Nxc5
{[%clk 0:01:04.9]} 17. Bb5 {[%clk 0:01:37.8]} 17... Qb7 {[%clk 0:00:42.9]} 18.
b4 {[%clk 0:01:15.7]} 18... a6 {[%clk 0:00:42.6]} 19. Bc4 {[%clk 0:00:47.9]}
19... Na4 {[%clk 0:00:42]} 20. Qc2 {[%clk 0:00:47.9]} 20... b5 {[%clk
0:00:27.2]} 21. Bd3 {[%clk 0:00:48.1]} 21... h6 {[%clk 0:00:18.7]} 22. Bh7+
{[%clk 0:00:41.4]} 22... Kh8 {[%clk 0:00:18.2]} 23. Be4 {[%clk 0:00:42.3]} 23...
Qc8 {[%clk 0:00:18.5]} 24. Qb3 {[%clk 0:00:31.3]} 24... Ra7 {[%clk 0:00:16]} 25.
Rc1 {[%clk 0:00:31.3]} 25... Qd8 {[%clk 0:00:11.5]} 26. Rfd1 {[%clk 0:00:31.7]}
26... Qb6 {[%clk 0:00:11.5]} 27. a3 {[%clk 0:00:30.8]} 27... Bf6 {[%clk
0:00:11]} 28. Bb1 {[%clk 0:00:30.3]} 28... Rd8 {[%clk 0:00:07.7]} 29. Qc2 {[%clk
0:00:28.3]} 29... g6 {[%clk 0:00:07.6]} 30. Kg2 {[%clk 0:00:25.2]} 30... Rad7
{[%clk 0:00:05.8]} 31. Rxd7 {[%clk 0:00:23.9]} 31... Rxd7 {[%clk 0:00:05.8]} 32.
h4 {[%clk 0:00:22.1]} 32... h5 {[%clk 0:00:04.7]} 33. Qe4 {[%clk 0:00:16.5]}
33... Kg7 {[%clk 0:00:04.5]} 34. Be5 {[%clk 0:00:16.3]} 34... Qd8 {[%clk
0:00:03.3]} 35. Rc6 {[%clk 0:00:16]} 35... Bxe5 {[%clk 0:00:03.5]} 36. Qxe5+
{[%clk 0:00:16.9]} 36... Qf6 {[%clk 0:00:04.1]} 37. Qxf6+ {[%clk 0:00:16.5]}
37... Kxf6 {[%clk 0:00:05]} 38. Rxa6 {[%clk 0:00:17.1]} 38... Nc3 {[%clk
0:00:05.7]} 39. Be4 {[%clk 0:00:16.5]} 39... Nxe4 {[%clk 0:00:05.5]} 40. fxe4
{[%clk 0:00:17.4]} 40... Rd3 {[%clk 0:00:06]} 41. Kf3 {[%clk 0:00:17.3]} 41...
Rb3 {[%clk 0:00:05.7]} 42. Ra5 {[%clk 0:00:16.9]} 42... Ke7 {[%clk 0:00:03]} 43.
e5 {[%clk 0:00:17.4]} 43... Kd7 {[%clk 0:00:01.6]} 44. Rxb5 {[%clk 0:00:17]}
44... Rxa3 {[%clk 0:00:01.6]} 45. Rb7+ {[%clk 0:00:17.6]} 45... Ke8 {[%clk
0:00:01.7]} 46. Kf4 {[%clk 0:00:18.1]} 46... Rb3 {[%clk 0:00:02.2]} 47. Kg5
{[%clk 0:00:17.4]} 47... Rb2 {[%clk 0:00:02.7]} 48. f4 {[%clk 0:00:17.8]} 48...
Rb3 {[%clk 0:00:02.1]} 49. Kf6 {[%clk 0:00:17.6]} 49... Rxe3 {[%clk 0:00:02.7]}
50. Re7+ {[%clk 0:00:15.5]} 50... Kd8 {[%clk 0:00:02.3]} 51. Rxf7 {[%clk
0:00:16.4]} 51... Re4 {[%clk 0:00:02.7]} 52. Kxg6 {[%clk 0:00:15.5]} 52... Rxb4
{[%clk 0:00:02.9]} 53. Kxh5 {[%clk 0:00:16]} 53... Ke8 {[%clk 0:00:03.2]} 54.
Kg6 {[%clk 0:00:15.6]} 54... Rb2 {[%clk 0:00:02.8]} 55. Kf6 {[%clk 0:00:16.1]}
55... Rh2 {[%clk 0:00:02.9]} 56. Rh7 {[%clk 0:00:16.2]} 56... Rg2 {[%clk
0:00:03]} 57. Kxe6 {[%clk 0:00:16.1]} 57... Rg6+ {[%clk 0:00:03.5]} 58. Kf5
{[%clk 0:00:16.5]} 58... Rb6 {[%clk 0:00:03.6]} 59. Rg7 {[%clk 0:00:16.2]} 59...
Rb4 {[%clk 0:00:04]} 60. h5 {[%clk 0:00:15.9]} 60... Rb6 {[%clk 0:00:04.4]} 61.
Rg6 {[%clk 0:00:15.8]} 61... Rb2 {[%clk 0:00:04.3]} 62. h6 {[%clk 0:00:16.3]}
62... Kf7 {[%clk 0:00:04.7]} 63. Rg7+ {[%clk 0:00:16.5]} 63... Kf8 {[%clk
0:00:05.3]} 64. Ra7 {[%clk 0:00:17.2]} 64... Rh2 {[%clk 0:00:05.4]} 65. h7
{[%clk 0:00:17]} 65... Rh5+ {[%clk 0:00:05.3]} 66. Kg6 {[%clk 0:00:16.9]} 66...
Rh4 {[%clk 0:00:05.4]} 67. Ra8+ {[%clk 0:00:17.1]} 67... Ke7 {[%clk 0:00:05.9]}
68. h8=Q {[%clk 0:00:18]} 68... Rg4+ {[%clk 0:00:06.3]} 69. Kf5 {[%clk
0:00:17.6]} 69... Rg2 {[%clk 0:00:05.7]} 70. Ra7# {[%clk 0:00:17.6]} 1-0

[Event "*** SCC Grand Prix: Titled Tuesday Blitz"]
[Site "Chess.com"]
[Date "2020.07.14"]
[Round "2"]
[White "Batsai"]
[Black "secretsuperstar7"]
[Result "1-0"]
[WhiteElo "2402"]
[BlackElo "2118"]
[TimeControl "180+1"]
[EndTime "10:19:15 PDT"]
[Termination "Batsai won by checkmate"]

1. d4 {[%clk 0:03:00.9]} 1... Nf6 {[%clk 0:02:58.7]} 2. c4 {[%clk 0:02:57.1]}
2... e6 {[%clk 0:02:58.5]} 3. Nc3 {[%clk 0:02:56.5]} 3... Bb4 {[%clk 0:02:58.4]}
4. e3 {[%clk 0:02:56.2]} 4... d5 {[%clk 0:02:56]} 5. Bd3 {[%clk 0:02:50.6]} 5...
O-O {[%clk 0:02:53.8]} 6. Ne2 {[%clk 0:02:49.5]} 6... dxc4 {[%clk 0:02:53.8]} 7.
Bxc4 {[%clk 0:02:49.1]} 7... c5 {[%clk 0:02:53.4]} 8. a3 {[%clk 0:02:47.6]} 8...
Bxc3+ {[%clk 0:02:51.6]} 9. bxc3 {[%clk 0:02:48.5]} 9... cxd4 {[%clk 0:02:49.5]}
10. cxd4 {[%clk 0:02:47.5]} 10... b6 {[%clk 0:02:47.9]} 11. O-O {[%clk
0:02:47.1]} 11... Bb7 {[%clk 0:02:48.2]} 12. a4 {[%clk 0:02:44.7]} 12... Nc6
{[%clk 0:02:47.5]} 13. Ba3 {[%clk 0:02:41.6]} 13... Re8 {[%clk 0:02:47.3]} 14.
Rc1 {[%clk 0:02:39.9]} 14... Rc8 {[%clk 0:02:42.4]} 15. Ng3 {[%clk 0:02:38.8]}
15... Qd7 {[%clk 0:02:32.5]} 16. Qe2 {[%clk 0:02:22.4]} 16... Na5 {[%clk
0:01:55.9]} 17. Bb5 {[%clk 0:02:20.4]} 17... Bc6 {[%clk 0:01:55.8]} 18. Bb4
{[%clk 0:02:04.8]} 18... Qd5 {[%clk 0:01:18.5]} 19. f3 {[%clk 0:01:50.6]} 19...
Nb3 {[%clk 0:01:04.6]} 20. Rxc6 {[%clk 0:01:33.9]} 20... Rxc6 {[%clk 0:01:01.3]}
21. Bxc6 {[%clk 0:01:34.1]} 21... Qxc6 {[%clk 0:00:59.9]} 22. Qb5 {[%clk
0:01:29.5]} 22... Rc8 {[%clk 0:00:42.6]} 23. Qxc6 {[%clk 0:01:17.9]} 23... Rxc6
{[%clk 0:00:43.5]} 24. Rb1 {[%clk 0:01:17.2]} 24... Rc1+ {[%clk 0:00:40.8]} 25.
Rxc1 {[%clk 0:01:17.5]} 25... Nxc1 {[%clk 0:00:41.7]} 26. Bd6 {[%clk 0:01:14.3]}
26... Nd5 {[%clk 0:00:36.1]} 27. e4 {[%clk 0:01:01.4]} 27... Nc3 {[%clk
0:00:35]} 28. Bb8 {[%clk 0:00:59.6]} 28... a6 {[%clk 0:00:28.2]} 29. Bc7 {[%clk
0:00:56.4]} 29... b5 {[%clk 0:00:25.8]} 30. axb5 {[%clk 0:00:54.5]} 30... axb5
{[%clk 0:00:26.7]} 31. Ba5 {[%clk 0:00:53]} 31... N3e2+ {[%clk 0:00:22.6]} 32.
Kf2 {[%clk 0:00:47.8]} 32... Nxd4 {[%clk 0:00:21.1]} 33. Ke3 {[%clk 0:00:41.6]}
33... Nc6 {[%clk 0:00:11.9]} 34. Bb6 {[%clk 0:00:37.2]} 34... b4 {[%clk
0:00:11.1]} 35. Kd2 {[%clk 0:00:35.1]} 35... Na2 {[%clk 0:00:10]} 36. Kc2 {[%clk
0:00:31.3]} 36... Nc3 {[%clk 0:00:07.9]} 37. Kb3 {[%clk 0:00:25.1]} 37... Nb5
{[%clk 0:00:06.9]} 38. Ne2 {[%clk 0:00:23.3]} 38... Kf8 {[%clk 0:00:06.3]} 39.
Kc4 {[%clk 0:00:20.7]} 39... Na3+ {[%clk 0:00:04.9]} 40. Kb3 {[%clk 0:00:19.5]}
40... Nb5 {[%clk 0:00:04.8]} 41. Bc5+ {[%clk 0:00:19.3]} 41... Ke8 {[%clk
0:00:04.7]} 42. Bxb4 {[%clk 0:00:19.4]} 42... Ncd4+ {[%clk 0:00:03.6]} 43. Nxd4
{[%clk 0:00:18.5]} 43... Nxd4+ {[%clk 0:00:04.5]} 44. Kc4 {[%clk 0:00:19.2]}
44... Ne2 {[%clk 0:00:04.6]} 45. Bd2 {[%clk 0:00:18]} 45... Ke7 {[%clk
0:00:03.8]} 46. Kd3 {[%clk 0:00:18.2]} 46... Ng1 {[%clk 0:00:02.7]} 47. Be3
{[%clk 0:00:17.8]} 47... Nxf3 {[%clk 0:00:02.5]} 48. gxf3 {[%clk 0:00:18.7]}
48... f5 {[%clk 0:00:02.8]} 49. exf5 {[%clk 0:00:18.5]} 49... exf5 {[%clk
0:00:02.8]} 50. Kd4 {[%clk 0:00:19.3]} 50... g6 {[%clk 0:00:03.2]} 51. Bg5+
{[%clk 0:00:18.9]} 51... Ke6 {[%clk 0:00:02.8]} 52. f4 {[%clk 0:00:18.8]} 52...
Kd6 {[%clk 0:00:03.1]} 53. Bh6 {[%clk 0:00:18.4]} 53... Ke6 {[%clk 0:00:02.8]}
54. Kc5 {[%clk 0:00:18.5]} 54... Kd7 {[%clk 0:00:02.3]} 55. Kd5 {[%clk
0:00:18.4]} 55... Ke7 {[%clk 0:00:02.9]} 56. Ke5 {[%clk 0:00:17.7]} 56... Kf7
{[%clk 0:00:03.4]} 57. Kd6 {[%clk 0:00:17.8]} 57... Kg8 {[%clk 0:00:03.7]} 58.
Ke7 {[%clk 0:00:16.7]} 58... Kh8 {[%clk 0:00:03.8]} 59. h4 {[%clk 0:00:15.1]}
59... Kg8 {[%clk 0:00:03.3]} 60. Kf6 {[%clk 0:00:12.9]} 60... Kh8 {[%clk
0:00:03.3]} 61. Kf7 {[%clk 0:00:10]} 61... g5 {[%clk 0:00:02.8]} 62. fxg5 {[%clk
0:00:10.9]} 62... f4 {[%clk 0:00:02.8]} 63. h5 {[%clk 0:00:11]} 63... f3 {[%clk
0:00:02.7]} 64. g6 {[%clk 0:00:11.9]} 64... hxg6 {[%clk 0:00:02.1]} 65. hxg6
{[%clk 0:00:12.8]} 65... f2 {[%clk 0:00:02.6]} 66. Bg7# {[%clk 0:00:13.4]} 1-0

[Event "*** SCC Grand Prix: Titled Tuesday Blitz"]
[Site "Chess.com"]
[Date "2020.07.14"]
[Round "2"]
[White "pedro_nascimento85"]
[Black "Khazieva_Elza"]
[Result "1-0"]
[WhiteElo "1947"]
[BlackElo "2328"]
[TimeControl "180+1"]
[EndTime "10:19:15 PDT"]
[Termination "pedro_nascimento85 won on time"]

1. d4 {[%clk 0:03:00.9]} 1... Nf6 {[%clk 0:02:59.9]} 2. c4 {[%clk 0:02:30]} 2...
d6 {[%clk 0:02:59.4]} 3. Nc3 {[%clk 0:02:27.9]} 3... Bf5 {[%clk 0:02:57.7]} 4.
Bg5 {[%clk 0:02:20.7]} 4... Nbd7 {[%clk 0:02:55.7]} 5. Nf3 {[%clk 0:02:07.8]}
5... h6 {[%clk 0:02:53.8]} 6. Bh4 {[%clk 0:02:07.4]} 6... e5 {[%clk 0:02:53.8]}
7. e3 {[%clk 0:02:05.6]} 7... Be7 {[%clk 0:02:49.9]} 8. Be2 {[%clk 0:02:03.4]}
8... O-O {[%clk 0:02:46]} 9. O-O {[%clk 0:02:01.8]} 9... c6 {[%clk 0:02:44.9]}
10. b4 {[%clk 0:01:31.8]} 10... Ne4 {[%clk 0:02:40.4]} 11. Bxe7 {[%clk
0:01:28.7]} 11... Qxe7 {[%clk 0:02:40.2]} 12. Nxe4 {[%clk 0:01:27.9]} 12... Bxe4
{[%clk 0:02:41.1]} 13. Nd2 {[%clk 0:01:26.8]} 13... Bg6 {[%clk 0:02:35.7]} 14.
Nb3 {[%clk 0:01:22.4]} 14... Nf6 {[%clk 0:02:26.3]} 15. Bd3 {[%clk 0:01:12.1]}
15... e4 {[%clk 0:01:43.3]} 16. Bc2 {[%clk 0:01:05.4]} 16... d5 {[%clk
0:01:37.4]} 17. c5 {[%clk 0:00:52.6]} 17... Bh5 {[%clk 0:01:31.2]} 18. Qc1
{[%clk 0:00:49.6]} 18... Nh7 {[%clk 0:01:26.9]} 19. a4 {[%clk 0:00:48.1]} 19...
Qg5 {[%clk 0:01:23]} 20. Bd1 {[%clk 0:00:44.3]} 20... Bf3 {[%clk 0:01:13.2]} 21.
Bxf3 {[%clk 0:00:41.1]} 21... exf3 {[%clk 0:01:13.3]} 22. g3 {[%clk 0:00:41.4]}
22... Qh5 {[%clk 0:01:08.4]} 23. Kh1 {[%clk 0:00:34.5]} 23... Ng5 {[%clk
0:01:03]} 24. Nd2 {[%clk 0:00:27.9]} 24... Qh3 {[%clk 0:00:53.4]} 25. Rg1 {[%clk
0:00:27.2]} 25... Rfe8 {[%clk 0:00:51.2]} 26. Qd1 {[%clk 0:00:25.6]} 26... Qg4
{[%clk 0:00:49.4]} 27. b5 {[%clk 0:00:16.8]} 27... Re6 {[%clk 0:00:46.9]} 28.
bxc6 {[%clk 0:00:16.4]} 28... bxc6 {[%clk 0:00:47.8]} 29. Rb1 {[%clk 0:00:16.8]}
29... Rae8 {[%clk 0:00:32.8]} 30. Rb7 {[%clk 0:00:16.1]} 30... R6e7 {[%clk
0:00:32.5]} 31. Rb4 {[%clk 0:00:11.7]} 31... Nh3 {[%clk 0:00:23.7]} 32. Rf1
{[%clk 0:00:10.3]} 32... h5 {[%clk 0:00:22.3]} 33. Qxf3 {[%clk 0:00:09.4]} 33...
Ng5 {[%clk 0:00:16.7]} 34. Qxg4 {[%clk 0:00:08.8]} 34... hxg4 {[%clk 0:00:17.6]}
35. Rfb1 {[%clk 0:00:07.5]} 35... Re6 {[%clk 0:00:15.2]} 36. Rb8 {[%clk
0:00:07]} 36... Kh7 {[%clk 0:00:09.6]} 37. Rxe8 {[%clk 0:00:05.2]} 37... Rxe8
{[%clk 0:00:10.5]} 38. Rb7 {[%clk 0:00:05.3]} 38... a5 {[%clk 0:00:08.6]} 39.
Kg2 {[%clk 0:00:05.6]} 39... Re6 {[%clk 0:00:05.7]} 40. Rb6 {[%clk 0:00:05.4]}
40... Nh3 {[%clk 0:00:05.6]} 41. Nb3 {[%clk 0:00:04.3]} 41... Rf6 {[%clk
0:00:05.8]} 42. f4 {[%clk 0:00:03.8]} 42... gxf3+ {[%clk 0:00:04.5]} 43. Kxh3
{[%clk 0:00:03.5]} 43... f2 {[%clk 0:00:04.9]} 44. Nd2 {[%clk 0:00:04.1]} 44...
f1=Q+ {[%clk 0:00:04.4]} 45. Nxf1 {[%clk 0:00:04.5]} 45... Rxf1 {[%clk
0:00:05.3]} 46. Rxc6 {[%clk 0:00:05.1]} 46... Ra1 {[%clk 0:00:05.1]} 47. Rd6
{[%clk 0:00:04.4]} 47... Rxa4 {[%clk 0:00:05.2]} 48. Rxd5 {[%clk 0:00:04.5]}
48... Ra3 {[%clk 0:00:05.7]} 49. c6 {[%clk 0:00:05]} 49... Rxe3 {[%clk
0:00:05.1]} 50. Rc5 {[%clk 0:00:05.3]} 50... Re8 {[%clk 0:00:04.8]} 51. Rxa5
{[%clk 0:00:05.5]} 51... Rc8 {[%clk 0:00:04.8]} 52. d5 {[%clk 0:00:05.8]} 52...
Kg6 {[%clk 0:00:04.8]} 53. Rc5 {[%clk 0:00:06.4]} 53... Kf6 {[%clk 0:00:05.1]}
54. d6 {[%clk 0:00:07]} 54... Ke6 {[%clk 0:00:03.4]} 55. d7 {[%clk 0:00:07.2]}
55... Rc7 {[%clk 0:00:03.7]} 56. Rc2 {[%clk 0:00:06.4]} 56... Ke7 {[%clk
0:00:03.8]} 57. Kg4 {[%clk 0:00:06.8]} 57... g6 {[%clk 0:00:03.4]} 58. h4 {[%clk
0:00:07.2]} 58... Kd8 {[%clk 0:00:01.3]} 59. Kg5 {[%clk 0:00:07.6]} 59... Ra7
{[%clk 0:00:01.6]} 60. Kf6 {[%clk 0:00:07.6]} 60... Ra3 {[%clk 0:00:01.2]} 61.
g4 {[%clk 0:00:07.4]} 1-0